bitfinex-derivatives/quotes_ETHF0:USTF0_20240818
["timestamp","ask_amount","ask_price","bid_price","bid_amount"]
[1723963303563,1.8712406,2607.8,2607.7,1.94496046]
[1723963304770,1.5070406,2607.8,2607.7,11.74536046]
[1723963304974,1.51022809,2608.1,2607.7,22.81944578]
[1723963305273,1.51022809,2608.1,2608.0,1.34183]
[1723963305472,0.00318749,2608.1,2608.0,1.94474032]
[1723963305675,0.00318749,2608.1,2608.0,9.28740649]
[1723963306275,0.37748749,2608.1,2608.0,9.28740649]
[1723963307278,0.37748749,2608.1,2608.0,8.68449617]
[1723963307774,0.37748749,2608.1,2608.0,5.45294601]
[1723963308283,0.37748749,2608.1,2608.0,8.68449617]
[1723963308475,0.37748749,2608.1,2608.0,4.85009617]
[1723963308671,0.37748749,2608.1,2608.0,8.68449617]
[1723963310471,0.37748749,2608.1,2608.0,4.85009617]
[1723963311279,0.37748749,2608.1,2608.0,8.68449617]
[1723963311485,0.37748749,2608.1,2608.0,4.85009617]
[1723963311683,0.37748749,2608.1,2608.0,1.34183]
[1723963314187,0.37748749,2608.1,2607.7,3.5873]
[1723963314486,0.37748749,2608.1,2607.9,5.01341869]
[1723963314882,0.37748749,2608.1,2608.0,1.34183]
[1723963318490,0.37748749,2608.1,2608.0,2.30783]
[1723963318887,0.37748749,2608.1,2608.0,7.48406]
[1723963319193,0.00318749,2608.1,2608.0,7.48406]
[1723963319378,0.00318749,2608.1,2608.0,3.64966]
[1723963319787,0.00318749,2608.1,2608.0,7.48406]
[1723963322087,0.00318749,2608.1,2608.0,11.52681647]
[1723963335406,0.00318749,2608.1,2608.0,7.69241647]
[1723963335701,0.00318749,2608.1,2608.0,6.35058647]
[1723963337509,0.00318749,2608.1,2608.0,7.69241647]
[1723963337704,0.00318749,2608.1,2608.0,6.35058647]
[1723963338106,0.00318749,2608.1,2608.0,12.86864647]
[1723963338414,0.00318749,2608.1,2608.0,18.47067542]
[1723963338603,0.00318749,2608.1,2608.0,20.41111392]
[1723963338905,0.00318749,2608.1,2608.0,18.49422828]
[1723963339105,0.00318749,2608.1,2608.0,13.49422828]
[1723963339305,0.00318749,2608.1,2608.0,10.78701542]
[1723963340016,0.00318749,2608.1,2608.0,11.78869828]
[1723963340204,0.00318749,2608.1,2608.0,13.13048666]
[1723963340405,0.00318749,2608.1,2608.0,12.1288038]
[1723963340715,0.00318749,2608.1,2608.0,13.13048666]
[1723963342516,0.00318749,2608.1,2608.0,15.04750697]
[1723963343303,0.00318749,2608.1,2608.0,14.44551964]
[1723963343513,0.00318749,2608.1,2608.0,15.55120023]
[1723963344105,0.00318749,2608.1,2608.0,15.5511908]
[1723963345408,0.00318749,2608.1,2608.0,14.04582981]
[1723963345919,0.00318749,2608.1,2608.0,14.04578628]
[1723963347016,0.00318749,2608.1,2608.0,15.54659407]
[1723963347215,0.00318749,2608.1,2608.0,15.5467398]
[1723963347415,0.00318749,2608.1,2608.0,15.54675519]
[1723963348621,0.00318749,2608.1,2608.0,14.04578628]
[1723963348820,0.00318749,2608.1,2608.0,15.54690187]
[1723963349722,0.00318749,2608.1,2608.0,14.04578628]
[1723963350227,0.00318749,2608.1,2608.0,10.21138628]
[1723963350520,0.00318749,2608.1,2608.0,8.86955628]
[1723963351017,0.34918749,2608.1,2608.0,7.95375402]
[1723963351320,0.34918749,2608.1,2608.0,9.87095974]
[1723963351821,0.34918749,2608.1,2608.0,9.87095273]
[1723963352017,0.34918749,2608.1,2608.0,10.3713543]
[1723963353215,0.34918749,2608.1,2608.0,8.86977821]
[1723963353426,0.34918749,2608.1,2608.0,10.3713543]
[1723963354121,0.34918749,2608.1,2608.0,8.86977821]
[1723963355015,0.34918749,2608.1,2608.0,8.26778518]
[1723963355224,0.34918749,2608.1,2608.0,10.37144183]
[1723963355523,0.34918749,2608.1,2608.0,8.86986574]
[1723963356324,0.34918749,2608.1,2608.0,10.37144183]
[1723963356525,0.34918749,2608.1,2608.0,8.86986574]
[1723963356712,0.34918749,2608.1,2608.0,10.37144183]
[1723963356916,0.34918749,2608.1,2608.0,9.76935137]
[1723963357117,0.34918749,2608.1,2608.0,10.37142811]
[1723963357411,0.34918749,2608.1,2608.0,11.71325811]
[1723963358829,0.34918749,2608.1,2608.0,10.21168202]
[1723963359913,0.34918749,2608.1,2608.0,10.21168358]
[1723963360228,0.34918749,2608.1,2608.0,11.71325967]
[1723963360623,0.34918749,2608.1,2608.0,11.71325446]
[1723963360826,0.34918749,2608.1,2608.0,8.9051246]
[1723963361019,6.19656822,2608.1,2608.0,1.94390153]
[1723963361420,5.52536749,2608.1,2608.0,1.34183]
[1723963362118,4.18358749,2608.1,2608.0,1.34183]
[1723963362516,2.35934276,2608.1,2608.0,2.91013819]
[1723963362727,0.34918749,2608.1,2608.0,2.91013819]
[1723963363125,2.35920983,2608.1,2608.0,2.91013819]
[1723963363318,2.35920983,2608.1,2608.0,2.30783]
[1723963363528,2.35920983,2608.1,2608.0,2.91011668]
[1723963363827,6.19360983,2608.1,2608.0,2.30783]
[1723963364022,6.19360983,2608.1,2608.0,2.91010776]
[1723963364430,2.35920983,2608.1,2608.0,2.91010776]
[1723963364646,2.35920983,2608.1,2608.0,4.25193776]
[1723963364647,1.85650596,2608.1,2608.0,4.25193776]
[1723963369528,1.85650596,2608.1,2608.0,4.25184886]
[1723963372937,1.85650596,2608.1,2608.0,3.64966]
[1723963373234,1.85650596,2608.1,2608.0,4.25185254]
[1723963373532,1.51050596,2608.1,2608.0,8.40431787]
[1723963374034,0.00318749,2608.1,2608.0,9.4055941]
[1723963374225,0.00318749,2608.1,2608.0,13.16479933]
[1723963376831,0.00318749,2608.1,2608.0,11.82296933]
[1723963378539,0.00318749,2608.1,2608.0,11.82299673]
[1723963379641,0.00318749,2608.1,2608.0,10.32142064]
[1723963380431,0.00318749,2608.1,2608.0,8.97959064]
[1723963380657,1.51050596,2608.1,2608.0,2.91002254]
[1723963380827,1.51050596,2608.1,2608.0,1.34183]
[1723963380828,3.83758749,2608.1,2608.0,1.34183]
[1723963381027,8.15538983,2608.1,2608.0,0.60218838]
[1723963381258,8.15538983,2608.1,2608.0,1.34183]
[1723963381423,7.18938983,2608.1,2608.0,1.9441314]
[1723963381641,7.18938983,2608.1,2608.0,1.34183]
[1723963382135,0.00318749,2608.1,2608.0,2.9101296]
[1723963383031,3.83758749,2608.1,2608.0,2.9101296]
[1723963383239,0.00318749,2608.1,2608.0,2.9101296]
[1723963384035,0.00318749,2608.1,2608.0,2.91008507]
[1723963385537,1.51022199,2608.1,2608.0,2.91008507]
[1723963387929,0.00318749,2608.1,2608.0,2.91009725]
[1723963388342,1.51032491,2608.1,2608.0,2.91009725]
[1723963388548,0.00318749,2608.1,2608.0,2.91009725]
[1723963389242,3.83758749,2608.1,2608.0,2.91009725]
[1723963389544,5.84760983,2608.1,2608.0,2.91015232]
[1723963389741,5.84760983,2608.1,2608.0,1.94415232]
[1723963390044,5.84760983,2608.1,2608.0,1.94415868]
[1723963391947,5.84760983,2608.1,2608.0,1.94411045]
[1723963392448,5.84760983,2608.1,2608.0,1.34183]
[1723963392648,5.84760983,2608.1,2608.0,1.94411447]
[1723963393533,5.84760983,2608.1,2608.0,1.34183]
[1723963393739,5.84760983,2608.1,2608.0,1.94414157]
[1723963393939,5.84760983,2608.1,2608.0,1.34183]
[1723963394138,5.84760983,2608.1,2608.0,1.94413575]
[1723963394342,5.84760983,2608.1,2608.0,1.94413499]
[1723963394648,5.84760983,2608.1,2608.0,1.9441382]
[1723963396148,5.84760983,2608.1,2608.0,1.94411315]
[1723963397147,3.83758749,2608.1,2608.0,1.94411315]
[1723963397335,5.84760983,2608.1,2608.0,1.94411315]
[1723963400150,5.84760983,2608.1,2608.0,1.34183]
[1723963400338,5.84760983,2608.1,2608.0,1.9441297]
[1723963401552,2.01320983,2608.1,2608.0,1.9441297]
[1723963401854,0.00318749,2608.1,2608.0,2.9101297]
[1723963402648,2.01320983,2608.1,2608.0,1.9441297]
[1723963404049,2.01320983,2608.1,2608.0,1.34183]
[1723963404343,2.01320983,2608.1,2608.0,1.94417042]
[1723963404558,2.01320983,2608.1,2608.0,1.34183]
[1723963404856,2.01320983,2608.1,2608.0,1.94416435]
[1723963405357,2.01320983,2608.1,2608.0,1.94416269]
[1723963408172,2.01320983,2608.1,2608.0,1.34183]
[1723963408355,2.01320983,2608.1,2608.0,1.94414073]
[1723963412347,2.01320983,2608.1,2608.0,1.94428978]
[1723963415355,5.84760983,2608.1,2608.0,1.94428978]
[1723963415557,5.17936749,2608.1,2608.0,1.94428978]
[1723963415763,8.65848754,2608.1,2608.0,1.94428978]
[1723963416563,8.65848754,2608.1,2608.0,1.94435965]
[1723963416959,8.65848754,2608.1,2608.0,1.94437334]
[1723963419651,8.65848754,2608.1,2608.0,1.34183]
[1723963420662,8.65848754,2608.1,2608.0,1.94436289]
[1723963423362,7.31670754,2608.1,2608.0,1.94436289]
[1723963427560,7.31856979,2608.1,2608.0,1.94436289]
[1723963428560,8.66034979,2608.1,2608.0,1.94436289]
[1723963428966,6.14536749,2608.1,2608.0,1.94436289]
[1723963429192,6.14536749,2608.1,2608.0,1.34183]
[1723963429365,6.14536749,2608.1,2608.0,1.94439681]
[1723963431759,9.35316749,2608.1,2608.0,1.94439681]
[1723963434860,8.01138749,2608.1,2608.0,1.94439681]
[1723963435061,10.52645597,2608.1,2608.0,1.94439681]
[1723963435761,8.01138749,2608.1,2608.0,1.94439681]
[1723963435965,9.35316749,2608.1,2608.0,1.94439681]
[1723963436873,9.35316749,2608.1,2608.0,1.94442954]
[1723963437074,8.01138749,2608.1,2608.0,1.94442954]
[1723963437459,9.35316749,2608.1,2608.0,0.60259954]
[1723963437664,8.01138749,2608.1,2608.0,1.94442954]
[1723963439070,10.52635952,2608.1,2608.0,1.94442954]
[1723963440703,10.52635952,2608.1,2608.0,1.34183]
[1723963440872,10.52635952,2608.1,2608.0,1.94437701]
[1723963443897,10.52635952,2608.1,2608.0,1.34183]
[1723963444174,10.52635952,2608.1,2608.0,1.94426695]
[1723963447362,6.69195952,2608.1,2608.0,1.94426695]
[1723963447973,5.72595952,2608.1,2608.0,1.34183]
[1723963448171,5.72595952,2608.1,2608.0,1.94413862]
[1723963449874,5.22294268,2608.1,2608.0,4.64011573]
[1723963450073,5.22294268,2608.1,2608.0,5.01371573]
[1723963450279,2.01514268,2608.1,2608.0,14.47650763]
[1723963450468,0.62428268,2608.2,2608.0,21.89415687]
[1723963450671,1.50870396,2608.3,2608.2,4.02519]
[1723963450882,1.50870396,2608.4,2608.3,2.68336]
[1723963451067,1.50870396,2608.4,2608.3,8.03424534]
[1723963451380,1.50870396,2608.4,2608.3,14.61997481]
[1723963451583,1.51295711,2608.4,2608.3,14.62432575]
[1723963452004,1.51295711,2608.4,2608.3,15.02319012]
[1723963452282,0.00425315,2608.4,2608.3,13.70810641]
[1723963452506,0.00425315,2608.4,2608.3,15.02313787]
[1723963452664,0.00425315,2608.4,2608.3,14.62384454]
[1723963452871,0.00425315,2608.4,2608.3,16.12642965]
[1723963453072,0.00425315,2608.4,2608.3,15.62430279]
[1723963453776,0.00425315,2608.4,2608.3,13.70736343]
[1723963453981,0.00425315,2608.4,2608.3,15.62428649]
[1723963454173,0.00425315,2608.4,2608.3,13.70736343]
[1723963456196,0.00425315,2608.4,2608.3,12.70692492]
[1723963456781,0.00425315,2608.4,2608.3,10.39924492]
[1723963458578,0.00425315,2608.4,2608.3,11.36524492]
[1723963460095,0.00425315,2608.4,2608.3,10.76334552]
[1723963460272,0.00425315,2608.4,2608.3,11.36524376]
[1723963463624,0.00425315,2608.4,2608.3,10.76334552]
[1723963463795,0.00425315,2608.4,2608.3,11.36524385]
[1723963464492,0.00425315,2608.4,2608.3,11.36524855]
[1723963466090,0.00425315,2608.4,2608.3,11.36524177]
[1723963466392,0.00425315,2608.4,2608.3,12.70692177]
[1723963466692,0.00425315,2608.4,2608.3,11.36524177]
[1723963467481,0.00425315,2608.4,2608.3,10.76334552]
[1723963467682,0.00425315,2608.4,2608.3,12.70690186]
[1723963467886,0.00425315,2608.4,2608.3,12.10502552]
[1723963468991,0.00425315,2608.4,2608.3,12.70689398]
[1723963470689,0.00425315,2608.4,2608.3,7.53161398]
[1723963470995,0.00425315,2608.4,2608.3,11.36521398]
[1723963471186,0.00425315,2608.4,2608.3,12.70689398]
[1723963472705,0.00425315,2608.4,2608.3,12.10502552]
[1723963472884,0.00425315,2608.4,2608.3,12.7069035]
[1723963473497,0.00425315,2608.4,2608.3,12.10502552]
[1723963473790,0.00425315,2608.4,2608.3,12.70689597]
[1723963475978,0.00425315,2608.4,2608.3,8.87329597]
[1723963476184,0.00425315,2608.4,2608.3,12.70689597]
[1723963476393,0.00425315,2608.4,2608.3,8.87329597]
[1723963476815,0.00425315,2608.4,2608.3,8.27142552]
[1723963477098,0.00425315,2608.4,2608.3,6.56674552]
[1723963477295,0.00425315,2608.4,2608.3,1.94794494]
[1723963477589,0.00425315,2608.4,2608.3,1.34603094]
[1723963477590,3.21205315,2608.4,2608.3,1.34603094]
[1723963477788,7.04565315,2608.4,2608.3,1.34603094]
[1723963477995,7.39365315,2608.4,2608.3,1.34603094]
[1723963478885,4.18585315,2608.4,2608.3,1.34603094]
[1723963479492,16.20998711,2608.4,2608.3,0.00435094]
[1723963479691,14.70128315,2608.4,2608.3,0.00435094]
[1723963480596,16.70790554,2608.4,2608.3,0.00435094]
[1723963480791,1.34175,2608.2,2608.0,1.34756738]
[1723963481088,1.0872,2608.1,2608.0,1.34756738]
[1723963481483,6.42657629,2608.1,2608.0,1.34756738]
[1723963481884,6.42657629,2608.1,2608.0,1.35199812]
[1723963482479,2.59217629,2608.1,2608.0,1.35199812]
[1723963483794,3.93395629,2608.1,2608.0,0.01018812]
[1723963483994,7.76835629,2608.1,2608.0,0.01018812]
[1723963485221,6.42657629,2608.1,2608.0,1.35201812]
[1723963490211,4.9216,2608.1,2608.0,1.35201812]
[1723963495103,1.0872,2608.1,2608.0,1.35201812]
[1723963495302,4.9216,2608.1,2608.0,1.35201812]
[1723963496502,1.0872,2608.1,2608.0,1.35201812]
[1723963496903,4.9216,2608.1,2608.0,1.35201812]
[1723963497503,6.42657629,2608.1,2608.0,1.35201812]
[1723963501912,2.59217629,2608.1,2608.0,1.35201812]
[1723963502204,1.0872,2608.1,2608.0,1.35201812]
[1723963502810,0.7142,2608.1,2608.0,2.31801812]
[1723963503007,0.3713,2608.1,2608.0,3.65984812]
[1723963503305,0.3713,2608.1,2608.0,2.31801812]
[1723963504506,0.3713,2608.1,2608.0,2.68831812]
[1723963506614,3.2078,2608.2,2608.1,1.34178]
[1723963507710,3.2078,2608.2,2608.1,2.30778]
[1723963509517,3.2078,2608.2,2608.1,3.64956]
[1723963510620,3.2078,2608.2,2608.1,2.30778]
[1723963511013,4.71277629,2608.2,2608.1,2.30778]
[1723963511720,3.2078,2608.2,2608.1,2.30778]
[1723963512320,4.71277629,2608.2,2608.1,2.30778]
[1723963516519,1.50497629,2608.2,2608.1,3.64956]
[1723963516726,1.50497629,2608.2,2608.1,7.48396]
[1723963516928,1.50497629,2608.3,2608.2,1.34173]
[1723963517126,2.75327554,2608.4,2608.2,0.3804]
[1723963518424,2.00662239,2608.3,2608.2,1.72213]
[1723963518625,2.75327554,2608.4,2608.3,1.34168]
[1723963519216,0.74665315,2608.4,2608.3,1.34168]
[1723963520217,3.26162518,2608.4,2608.3,1.34168]
[1723963524620,3.2601791,2608.4,2608.3,1.34168]
[1723963525343,0.74665315,2608.4,2608.3,1.34168]
[1723963526326,3.26048134,2608.4,2608.3,1.94351095]
[1723963527433,0.74665315,2608.4,2608.3,1.34168]
[1723963527627,3.26042149,2608.4,2608.3,1.94346256]
[1723963527938,3.2604554,2608.4,2608.3,1.34168]
[1723963528624,3.2604554,2608.4,2608.3,1.94343393]
[1723963528825,3.2604554,2608.4,2608.3,1.34168]
[1723963529136,0.74665315,2608.4,2608.3,1.34168]
[1723963529432,3.26045504,2608.4,2608.3,1.94345333]
[1723963529643,0.74665315,2608.4,2608.3,1.34168]
[1723963530536,3.26051224,2608.4,2608.3,1.94344254]
[1723963530732,0.74665315,2608.4,2608.3,1.34168]
[1723963531228,2.08828315,2608.4,2608.3,1.34168]
[1723963531435,2.08828315,2608.4,2608.1,0.966]
[1723963531634,2.51408302,2608.3,2608.2,1.94354122]
[1723963532638,0.74665315,2608.4,2608.3,1.34168]
[1723963532831,0.74665315,2608.4,2608.3,1.94342392]
[1723963533229,3.26073438,2608.4,2608.3,1.94342392]
[1723963537038,3.26073438,2608.4,2608.3,1.94323827]
[1723963539838,3.26073438,2608.4,2608.3,1.34168]
[1723963540029,3.26073438,2608.4,2608.3,1.94329118]
[1723963541246,3.26073438,2608.4,2608.3,1.34168]
[1723963541432,3.26073438,2608.4,2608.3,1.94359784]
[1723963541943,3.26073438,2608.4,2608.3,1.94356571]
[1723963543541,0.00425315,2608.4,2608.3,3.28524571]
[1723963543733,1.5125954,2608.4,2608.3,6.70481999]
[1723963543932,1.5125954,2608.4,2608.3,7.08031999]
[1723963543933,0.00425315,2608.4,2608.3,7.08031999]
[1723963544131,0.00425315,2608.4,2608.3,5.57773488]
[1723963544532,0.00425315,2608.4,2608.3,7.079093]
[1723963545555,0.00425315,2608.4,2608.3,7.0789071]
[1723963546241,0.00425315,2608.4,2608.3,15.12209611]
[1723963546942,0.00425315,2608.4,2608.3,13.62065892]
[1723963547138,0.00425315,2608.4,2608.3,14.96233892]
[1723963547339,1.50834225,2608.7,2608.6,1.34152]
[1723963547642,1.50834225,2608.7,2608.6,3.25741981]
[1723963547947,1.50834225,2608.7,2608.6,3.61501981]
[1723963548244,1.51281944,2608.7,2608.6,3.61501981]
[1723963548444,0.00447719,2608.7,2608.6,3.61501981]
[1723963548643,0.00447719,2608.7,2608.6,15.43490124]
[1723963548846,0.00447719,2608.7,2608.6,18.22650576]
[1723963550444,0.00447719,2608.7,2608.6,16.72627306]
[1723963550646,0.00447719,2608.7,2608.6,17.72554439]
[1723963551241,0.00447719,2608.7,2608.6,15.80891744]
[1723963553752,0.00447719,2608.7,2608.6,14.46739744]
[1723963554152,0.00447719,2608.7,2608.6,13.46798728]
[1723963554846,0.00447719,2608.7,2608.6,13.46799921]
[1723963555950,0.00447719,2608.7,2608.6,13.46805048]
[1723963558256,0.00447719,2608.7,2608.6,13.46807315]
[1723963558753,0.00447719,2608.7,2608.6,12.38737315]
[1723963558948,0.00447719,2608.7,2608.6,5.6446063]
[1723963559150,0.00447719,2608.7,2608.6,6.6106063]
[1723963559647,3.57317719,2608.7,2608.6,5.6446063]
[1723963559853,3.95367719,2608.7,2608.6,5.6446063]
[1723963560550,6.26114719,2608.7,2608.6,1.34152]
[1723963560857,1.3416,2608.5,2608.3,1.34163]
[1723963561043,1.3416,2608.5,2608.1,0.966]
[1723963561044,1.3417,2608.3,2608.1,1.34175]
[1723963561246,0.3609,2608.2,2608.1,1.34175]
[1723963561455,0.3609,2608.2,2608.1,2.30775]
[1723963561753,0.7299,2608.2,2608.1,2.30775]
[1723963562754,0.369,2608.2,2608.1,10.1791609]
[1723963563058,0.369,2608.2,2608.1,6.3447609]
[1723963565957,0.369,2608.2,2608.1,11.5209409]
[1723963566149,0.369,2608.2,2608.1,12.12303904]
[1723963567353,0.3805,2608.4,2608.3,1.34168]
[1723963567755,0.3805,2608.4,2608.3,5.45666179]
[1723963570753,0.3805,2608.4,2608.3,6.0586375]
[1723963570962,0.3805,2608.4,2608.3,5.45666179]
[1723963571866,0.3805,2608.4,2608.3,6.0585828]
[1723963573066,0.3805,2608.4,2608.3,5.45666179]
[1723963574159,0.3805,2608.4,2608.3,6.05866014]
[1723963577283,0.3805,2608.4,2608.3,5.45666179]
[1723963577469,0.3805,2608.4,2608.3,6.05862217]
[1723963577686,0.3805,2608.4,2608.3,5.45666179]
[1723963577870,0.3667,2608.5,2608.4,2.68326]
[1723963578075,0.3667,2608.5,2608.4,5.61509313]
[1723963578371,0.3667,2608.5,2608.4,10.74358274]
[1723963578561,0.3667,2608.5,2608.4,12.24381544]
[1723963578873,0.3667,2608.5,2608.4,11.74240052]
[1723963579084,0.73007719,2608.7,2608.6,1.34152]
[1723963579269,0.73007719,2608.7,2608.6,2.90948169]
[1723963579969,0.73007719,2608.7,2608.6,4.25100169]
[1723963581676,0.00447719,2608.7,2608.6,2.90922972]
[1723963585604,0.00447719,2608.7,2608.6,2.30752]
[1723963585761,0.00447719,2608.7,2608.6,2.90919733]
[1723963589580,0.00447719,2608.7,2608.6,4.25071733]
[1723963590180,0.00447719,2608.7,2608.6,3.64904]
[1723963590377,0.00447719,2608.7,2608.6,4.25070721]
[1723963591568,0.00447719,2608.7,2608.6,8.80002721]
[1723963591768,0.00447719,2608.7,2608.6,9.79884499]
[1723963591981,0.00447719,2608.7,2608.6,6.59104499]
[1723963592178,0.00447719,2608.7,2608.6,9.79884499]
[1723963593270,0.00447719,2608.7,2608.6,6.59104499]
[1723963593716,0.00447719,2608.7,2608.6,5.98937778]
[1723963593893,0.00447719,2608.7,2608.6,6.5909742]
[1723963595676,0.00447719,2608.7,2608.6,14.69335966]
[1723963596385,0.34747719,2608.7,2608.6,14.69335966]
[1723963596684,0.34747719,2608.7,2608.6,13.35183966]
[1723963596876,0.34747719,2608.7,2608.6,12.35302188]
[1723963598284,0.34747719,2608.7,2608.6,13.35183966]
[1723963599283,0.34747719,2608.7,2608.6,12.35302188]
[1723963599488,0.34747719,2608.7,2608.6,8.51942188]
[1723963599877,0.34747719,2608.7,2608.6,8.51944166]
[1723963600288,0.00447719,2608.7,2608.6,8.51944166]
[1723963602480,0.00447719,2608.7,2608.6,8.51944076]
[1723963603882,0.00447719,2608.7,2608.6,9.51825854]
[1723963604593,0.00447719,2608.7,2608.6,17.90117854]
[1723963604793,0.00447719,2608.7,2608.6,19.81777807]
[1723963604981,0.00447719,2608.7,2608.6,19.18436029]
[1723963605181,0.00447719,2608.7,2608.6,20.1832673]
[1723963605796,0.00447719,2608.7,2608.6,22.09984821]
[1723963606124,0.00447719,2608.7,2608.6,19.58163338]
[1723963606301,0.00447719,2608.7,2608.6,18.26658774]
[1723963606483,0.00447719,2608.7,2608.6,20.18318608]
[1723963607090,0.00447719,2608.7,2608.6,18.26658774]
[1723963607490,0.00447719,2608.7,2608.6,20.18318151]
[1723963609291,0.00447719,2608.7,2608.6,19.1842745]
[1723963610295,0.00447719,2608.7,2608.6,20.6845072]
[1723963610519,0.00447719,2608.7,2608.6,20.08297746]
[1723963610697,0.00447719,2608.7,2608.6,20.68452707]
[1723963613391,0.00447719,2608.7,2608.6,19.35312707]
[1723963613600,0.00447719,2608.7,2608.6,20.31912707]
[1723963615020,0.00447719,2608.7,2608.6,19.71757746]
[1723963615192,0.00447719,2608.7,2608.6,20.3191635]
[1723963615608,0.00447719,2608.7,2608.6,20.31916431]
[1723963618593,0.00447719,2608.7,2608.6,18.81893161]
[1723963619795,0.00447719,2608.7,2608.6,18.81891215]
[1723963621505,0.00447719,2608.7,2608.6,18.97829284]
[1723963621700,0.36467719,2608.7,2608.6,15.14469284]
[1723963621899,0.71317719,2608.7,2608.6,18.97829284]
[1723963622099,0.71317719,2608.7,2608.6,15.14469284]
[1723963623000,0.71317719,2608.7,2608.6,18.97829284]
[1723963623309,0.71317719,2608.7,2608.6,17.47751888]
[1723963624503,0.71317719,2608.7,2608.6,19.48466687]
[1723963626298,0.71317719,2608.7,2608.6,16.27686687]
[1723963626707,0.71317719,2608.7,2608.6,16.27691964]
[1723963626942,0.71317719,2608.7,2608.6,16.27689855]
[1723963627509,0.71317719,2608.7,2608.6,16.27658474]
[1723963627707,0.71317719,2608.7,2608.6,17.61840919]
[1723963628006,0.71317719,2608.7,2608.6,21.45152205]
[1723963628632,0.71317719,2608.7,2608.6,20.84993275]
[1723963628905,0.71317719,2608.7,2608.6,21.45150908]
[1723963629312,0.71317719,2608.7,2608.6,24.65930908]
[1723963631128,0.71317719,2608.7,2608.6,24.05773275]
[1723963631304,0.71317719,2608.7,2608.6,24.65930035]
[1723963632004,0.71317719,2608.7,2608.6,23.31778035]
[1723963632202,0.71317719,2608.7,2608.6,14.68495415]
[1723963632404,2.21702655,2608.7,2608.6,11.72719306]
[1723963632606,0.71317719,2608.7,2608.6,13.64386713]
[1723963633207,0.71317719,2608.7,2608.6,19.48436108]
[1723963634211,0.71317719,2608.7,2608.6,15.65101512]
[1723963635203,2.21702655,2608.7,2608.6,15.04944752]
[1723963635407,2.21702655,2608.7,2608.6,15.65109855]
[1723963635601,2.21702655,2608.7,2608.6,13.64395056]
[1723963637210,2.21702655,2608.7,2608.6,13.64400749]
[1723963637812,0.71317719,2608.7,2608.6,15.65115548]
[1723963638006,0.71317719,2608.7,2608.6,19.48459715]
[1723963638204,0.71317719,2608.7,2608.6,15.65115548]
[1723963638407,0.71317719,2608.7,2608.6,19.48453813]
[1723963638710,0.71317719,2608.7,2608.6,16.27673099]
[1723963638906,0.71317719,2608.7,2608.6,12.44335548]
[1723963639106,0.71317719,2608.7,2608.6,16.27672415]
[1723963639309,0.71317719,2608.7,2608.6,12.44335548]
[1723963639543,0.71317719,2608.7,2608.6,11.84170445]
[1723963639723,0.71317719,2608.7,2608.6,12.44334127]
[1723963640133,0.71317719,2608.7,2608.6,16.27674367]
[1723963640421,0.71317719,2608.7,2608.6,17.61826367]
[1723963640621,0.71317719,2608.7,2608.6,16.27674367]
[1723963640818,0.71317719,2608.7,2608.6,12.44333288]
[1723963641421,0.71317719,2608.7,2608.6,17.61817649]
[1723963641616,0.71317719,2608.7,2608.6,21.52657649]
[1723963641816,0.71317719,2608.7,2608.6,21.52645169]
[1723963643920,0.71317719,2608.7,2608.6,21.52683209]
[1723963644319,0.71317719,2608.7,2608.6,21.83454683]
[1723963645527,0.71317719,2608.7,2608.6,21.5268332]
[1723963646522,0.71317719,2608.7,2608.6,21.526881]
[1723963648034,0.71317719,2608.7,2608.6,21.52686575]
[1723963649841,0.71317719,2608.7,2608.6,20.92487106]
[1723963650023,0.71317719,2608.7,2608.6,21.52690636]
[1723963650314,0.71317719,2608.7,2608.6,21.52688926]
[1723963651729,0.71317719,2608.7,2608.6,19.51974127]
[1723963652148,0.71317719,2608.7,2608.6,20.92183958]
[1723963652332,0.71317719,2608.7,2608.6,21.52386044]
[1723963652830,0.71317719,2608.7,2608.6,21.52385922]
[1723963653231,0.71317719,2608.7,2608.6,21.52385423]
[1723963653529,0.71317719,2608.7,2608.6,21.52387177]
[1723963653724,0.71317719,2608.7,2608.6,21.52387185]
[1723963654927,0.71317719,2608.7,2608.6,19.51972569]
[1723963655931,0.71317719,2608.7,2608.6,20.18224872]
[1723963656229,0.71317719,2608.7,2608.6,19.48164872]
[1723963657027,0.71317719,2608.7,2608.6,20.82316872]
[1723963657934,0.71317719,2608.7,2608.6,18.81907075]
[1723963659131,0.1382021,2608.7,2608.6,21.32716432]
[1723963659327,0.1382021,2608.7,2608.6,18.81907075]
[1723963659528,0.1382021,2608.7,2608.6,21.32716432]
[1723963659936,0.1409175,2608.7,2608.6,21.32716432]
[1723963660235,0.1409175,2608.7,2608.6,18.81907075]
[1723963660527,0.1409175,2608.7,2608.6,18.81901423]
[1723963660747,0.1409175,2608.7,2608.6,18.81897141]
[1723963661032,0.1409175,2608.7,2608.6,17.47745141]
[1723963661529,0.1409175,2608.7,2608.6,18.81897141]
[1723963664325,0.1409175,2608.7,2608.6,17.47744657]
[1723963664747,0.1409175,2608.7,2608.6,18.81896657]
[1723963665129,0.1409175,2608.7,2608.6,13.06911752]
[1723963665350,0.1409175,2608.7,2608.6,18.21701249]
[1723963665525,0.1409175,2608.7,2608.6,18.81898139]
[1723963665930,0.1409175,2608.7,2608.6,17.47746139]
[1723963667323,0.1409175,2608.7,2608.6,18.81898139]
[1723963667742,0.1409175,2608.7,2608.6,17.47746139]
[1723963668633,0.1409175,2608.7,2608.6,13.64423692]
[1723963668848,0.1409175,2608.7,2608.6,17.47752204]
[1723963669137,0.1409175,2608.7,2608.6,17.47732503]
[1723963669930,0.1409175,2608.7,2608.6,17.47732396]
[1723963670634,0.1409175,2608.7,2608.6,17.47706088]
[1723963671432,0.1409175,2608.7,2608.6,18.81858088]
[1723963671833,0.1409175,2608.7,2608.6,16.51106088]
[1723963672230,0.1409175,2608.7,2608.6,17.47706088]
[1723963674743,0.1409175,2608.7,2608.6,17.47705023]
[1723963675845,7.1823175,2608.7,2608.6,5.3619002]
[1723963676147,14.69639873,2608.7,2608.6,0.60150881]
[1723963676442,16.03751802,2608.7,2608.6,0.60150881]
[1723963677059,16.03751802,2608.7,2608.4,1.9675339]
[1723963677241,11.03751802,2608.7,2608.5,0.60181896]
[1723963677444,5.84397482,2608.6,2608.5,1.34158]
[1723963677831,5.84397482,2608.6,2608.5,1.94339751]
[1723963681738,3.8336,2608.6,2608.5,1.94339751]
[1723963682450,5.84397482,2608.6,2608.5,1.94339751]
[1723963682750,3.8336,2608.6,2608.5,1.94339751]
[1723963683652,5.3401262,2608.6,2608.5,1.94339751]
[1723963684171,5.3401262,2608.6,2608.5,1.34158]
[1723963684347,5.3401262,2608.6,2608.5,1.94336912]
[1723963685053,5.3401262,2608.6,2608.5,1.9434139]
[1723963685242,5.3401262,2608.6,2608.5,1.94340551]
[1723963685439,5.3401262,2608.6,2608.5,1.34158]
[1723963693356,3.8336,2608.6,2608.5,1.34158]
[1723963694458,6.6816462,2608.6,2608.5,1.34158]
[1723963694658,5.3401262,2608.6,2608.5,1.34158]
[1723963695550,6.6816462,2608.6,2608.5,1.34158]